fUSD/lending_fUSD_20250928
["ID","MTS","AMOUNT","RATE_DAILY","PERIOD"]
[388131865,1759017621027,160.0,0.00021918,120]
[388131866,1759017621784,160.0,0.00021918,120]
[388131867,1759017622334,160.0,0.00021918,120]
[388131868,1759017622917,160.0,0.00021918,120]
[388131869,1759017623464,160.0,0.00021918,120]
[388131870,1759017624368,154.0,0.00024658,120]
[388131871,1759017625357,155.0,0.00021918,120]
[388131872,1759017625951,155.0,0.00021918,120]
[388131893,1759017627290,155.0,0.00021918,120]
[388131894,1759017627523,154.0,0.00024658,120]
[388131895,1759017628279,154.0,0.00024658,120]
[388131896,1759017628769,157.45070108,0.00024658,120]
[388131897,1759017629340,154.0,0.00024658,120]
[388131899,1759017630752,155.0,0.00021918,120]
[388131900,1759017631309,155.0,0.00021918,120]
[388131901,1759017631940,155.0,0.00021918,120]
[388131902,1759017632553,155.0,0.00021918,120]
[388131903,1759017633292,155.0,0.00021918,120]
[388131904,1759017633871,155.0,0.00021918,120]
[388131905,1759017634463,155.0,0.00021918,120]
[388131906,1759017635156,155.0,0.00021918,120]
[388131908,1759017635812,155.0,0.00021918,120]
[388131923,1759017696331,3617.4507664,0.00030136,120]
[388131924,1759017923613,182.74362872,0.00021918,120]
[388131950,1759018232266,-502.61,0.00017479,2]
[388131952,1759018232276,-345.26333955,0.00018061,2]
[388131955,1759018232287,-253.48991683,0.00018061,2]
[388131956,1759018232298,-3664.92674362,0.00018061,2]
[388131958,1759018232308,-193.58,0.00018075,2]
[388131959,1759018232317,-18.59325638,0.00018098,7]
[388131960,1759018232338,-131.40674362,0.00018098,7]
[388131961,1759018232347,-1200.0,0.00018131,2]
[388131962,1759018232356,-3520.24122502,0.00018132,2]
[388131963,1759018232383,-938.20877498,0.00018132,2]
[388131964,1759018232392,-150.0,0.00018153,2]
[388131965,1759018232401,-300.0,0.00018165,2]
[388131966,1759018232411,-167.03,0.00018166,2]
[388131967,1759018232420,-458.86,0.00018171,2]
[388131968,1759018232430,-405.92,0.00018312,2]
[388131969,1759018232440,-806.41,0.000184,2]
[388131970,1759018232450,-473.29,0.000184,2]
[388131971,1759018232460,-175.4,0.000184,2]
[388131972,1759018232471,-1074.55,0.0001841,2]
[388131973,1759018232481,-150.0,0.00018767,2]
[388131974,1759018232491,-1000.0,0.00019,2]
[388131975,1759018232501,-205.04979564,0.00019077,2]
[388131976,1759018232510,-2500.0,0.00019078,2]
[388131977,1759018232519,-4216.98688377,0.00019078,2]
[388131978,1759018232529,-1657.83857,0.0001909,2]
[388131979,1759018232538,-322.6107,0.00019099,2]
[388131980,1759018232547,-24288.36411486,0.00019111,2]
[388131981,1759018237799,-358.8176893,0.00019078,2]
[388131982,1759018237809,-742.8813107,0.00019078,2]
[388132056,1759018239803,-279.89771197,0.00019078,2]
[388132057,1759018240081,-19663.16406514,0.00019078,2]
[388132058,1759018240091,-64866.25796172,0.00019111,2]
[388132059,1759018240101,-1263.0,0.00019122,2]
[388132060,1759018240110,-1179.0,0.00019122,2]
[388132061,1759018240120,-151.68,0.00019168,2]
[388132062,1759018240130,-220.09584163,0.00019168,2]
[388132063,1759018240140,-220.09584163,0.00019168,2]
[388132064,1759018240150,-500.0,0.00019173,2]
[388132065,1759018240159,-500.0,0.00019173,2]
[388132066,1759018240169,-1000.0,0.00019177,2]
[388132067,1759018240179,-1000.0,0.00019177,2]
[388132068,1759018240189,-407.8160792,0.00019177,2]
[388132069,1759018240200,-514.0,0.00019178,2]
[388132070,1759018240209,-242241.78340556,0.00019178,2]
[388132116,1759018242964,-331.22710078,0.00019178,2]
[388132117,1759018243033,-322.27611455,0.00019178,2]
[388132118,1759018243044,-319.16000001,0.00019178,2]
[388132121,1759018243230,-519215.05263078,0.00019178,2]
[388132122,1759018243242,-400.0,0.00019178,2]
[388132123,1759018243251,-1950.57,0.00019178,2]
[388132124,1759018243261,-400.0,0.00019178,2]
[388132125,1759018243270,-1950.57,0.00019178,2]
[388132126,1759018243279,-400.0,0.00019178,2]
[388132127,1759018243288,-1950.57,0.00019178,2]
[388132128,1759018243298,-400.0,0.00019178,2]
[388132129,1759018243307,-1950.57,0.00019178,2]
[388132130,1759018243317,-400.0,0.00019178,2]
[388132131,1759018243326,-1950.57,0.00019178,2]
[388132132,1759018243336,-400.0,0.00019178,2]
[388132133,1759018243346,-1950.57,0.00019178,2]
[388132134,1759018243356,-400.0,0.00019178,2]
[388132135,1759018243366,-400.0,0.00019178,2]
[388132136,1759018243375,-400.0,0.00019178,2]
[388132137,1759018243385,-400.0,0.00019178,2]
[388132138,1759018243395,-400.0,0.00019178,2]
[388132139,1759018243405,-400.0,0.00019178,2]
[388132140,1759018243414,-400.0,0.00019178,2]
[388132141,1759018243423,-400.0,0.00019178,2]
[388132142,1759018243432,-400.0,0.00019178,2]
[388132143,1759018243442,-400.0,0.00019178,2]
[388132144,1759018243451,-404.25,0.00019178,2]
[388132145,1759018243461,-404.25,0.00019178,2]
[388132146,1759018243470,-404.25,0.00019178,2]
[388132147,1759018243479,-404.25,0.00019178,2]
[388132148,1759018243489,-404.25,0.00019178,2]
[388132149,1759018243498,-404.25,0.00019178,2]
[388132150,1759018243508,-404.25,0.00019178,2]
[388132151,1759018243516,-404.25,0.00019178,2]
[388132152,1759018243525,-404.25,0.00019178,2]
[388132153,1759018243534,-404.25,0.00019178,2]
[388132154,1759018243544,-404.25,0.00019178,2]
[388132155,1759018243553,-404.25,0.00019178,2]
[388132156,1759018243562,-404.25,0.00019178,2]
[388132157,1759018243572,-1950.57,0.00019178,2]
[388132158,1759018243581,-404.25,0.00019178,2]
[388132159,1759018243591,-1950.57,0.00019178,2]
[388132160,1759018243600,-404.25,0.00019178,2]
[388132161,1759018243608,-404.25,0.00019178,2]
[388132162,1759018243618,-1950.57,0.00019178,2]
[388132163,1759018243627,-1950.57,0.00019178,2]
[388132164,1759018243636,-404.25,0.00019178,2]
[388132165,1759018243645,-1950.57,0.00019178,2]
[388132166,1759018243654,-404.25,0.00019178,2]
[388132167,1759018243663,-1950.57,0.00019178,2]
[388132168,1759018243673,-404.25,0.00019178,2]
[388132169,1759018243684,-1950.57,0.00019178,2]
[388132170,1759018243693,-404.25,0.00019178,2]
[388132171,1759018243702,-1950.57,0.00019178,2]
[388132172,1759018243712,-404.25,0.00019178,2]
[388132173,1759018243721,-1950.57,0.00019178,2]
[388132174,1759018243731,-404.25,0.00019178,2]
[388132175,1759018243740,-1950.57,0.00019178,2]
[388132176,1759018243749,-404.25,0.00019178,2]
[388132177,1759018243758,-1950.57,0.00019178,2]
[388132178,1759018243767,-404.33397442,0.00019178,2]
[388132179,1759018243776,-1950.57,0.00019178,2]
[388132180,1759018243786,-1950.57,0.00019178,2]
[388132181,1759018243795,-1950.57,0.00019178,2]
[388132182,1759018243803,-1950.57,0.00019178,2]
[388132183,1759018243812,-1950.57,0.00019178,2]
[388132184,1759018243822,-1950.57,0.00019178,2]
[388132185,1759018243831,-1950.64232862,0.00019178,2]
[388132186,1759018243840,-400.0,0.00019178,2]
[388132187,1759018243849,-400.0,0.00019178,2]
[388132188,1759018243858,-400.0,0.00019178,2]
[388132189,1759018243868,-170.9,0.00019178,2]
[388132190,1759018243877,-632.2,0.00019178,2]
[388132191,1759018243886,-632.2,0.00019178,2]
[388132192,1759018243896,-632.2,0.00019178,2]
[388132193,1759018243905,-632.2,0.00019178,2]
[388132194,1759018243915,-632.2,0.00019178,2]
[388132195,1759018243924,-632.2,0.00019178,2]
[388132196,1759018243937,-632.2,0.00019178,2]
[388132197,1759018243947,-632.2,0.00019178,2]
[388132198,1759018243956,-632.2,0.00019178,2]
[388132199,1759018243965,-632.2,0.00019178,2]
[388132200,1759018243975,-632.2,0.00019178,2]
[388132201,1759018243984,-632.2,0.00019178,2]
[388132202,1759018243994,-632.2,0.00019178,2]
[388132203,1759018244004,-632.2,0.00019178,2]
[388132204,1759018244013,-632.2,0.00019178,2]
[388132205,1759018244022,-632.2,0.00019178,2]
[388132206,1759018244031,-632.2,0.00019178,2]
[388132207,1759018244040,-632.2,0.00019178,2]
[388132208,1759018244050,-632.2,0.00019178,2]
[388132209,1759018244059,-632.2,0.00019178,2]
[388132210,1759018244068,-632.2,0.00019178,2]
[388132211,1759018244078,-632.2,0.00019178,2]
[388132212,1759018244087,-632.2,0.00019178,2]
[388132213,1759018244095,-632.2,0.00019178,2]
[388132214,1759018244105,-505.54,0.00019178,2]
[388132215,1759018244114,-505.54,0.00019178,2]
[388132216,1759018244123,-505.54,0.00019178,2]
[388132217,1759018244132,-505.54,0.00019178,2]
[388132218,1759018244142,-505.54,0.00019178,2]
[388132219,1759018244151,-505.54,0.00019178,2]
[388132220,1759018244161,-505.54,0.00019178,2]
[388132221,1759018244170,-505.54,0.00019178,2]
[388132222,1759018244179,-505.54,0.00019178,2]
[388132223,1759018244188,-505.54,0.00019178,2]
[388132224,1759018244197,-505.54,0.00019178,2]
[388132225,1759018244206,-505.54,0.00019178,2]
[388132226,1759018244216,-505.54,0.00019178,2]
[388132227,1759018244224,-505.54,0.00019178,2]
[388132228,1759018244233,-505.54,0.00019178,2]
[388132229,1759018244242,-505.54,0.00019178,2]
[388132230,1759018244252,-505.54,0.00019178,2]
[388132231,1759018244261,-505.54,0.00019178,2]
[388132232,1759018244270,-505.54,0.00019178,2]
[388132233,1759018244280,-505.54,0.00019178,2]
[388132234,1759018244289,-505.54,0.00019178,2]
[388132235,1759018244299,-505.54,0.00019178,2]
[388132236,1759018244309,-505.54,0.00019178,2]
[388132237,1759018244319,-505.64,0.00019178,2]
[388132238,1759018244328,-978.96,0.00019178,2]
[388132239,1759018244339,-978.96,0.00019178,2]
[388132240,1759018244348,-978.96,0.00019178,2]
[388132241,1759018244357,-978.96,0.00019178,2]
[388132242,1759018244366,-978.96,0.00019178,2]
[388132243,1759018244375,-978.96,0.00019178,2]
[388132244,1759018244385,-978.96,0.00019178,2]
[388132245,1759018244395,-978.96,0.00019178,2]
[388132246,1759018244404,-978.96,0.00019178,2]
[388132247,1759018244414,-978.96,0.00019178,2]
[388132248,1759018244424,-978.96,0.00019178,2]
[388132249,1759018244433,-978.96,0.00019178,2]
[388132250,1759018244442,-978.96,0.00019178,2]
[388132251,1759018244451,-978.96,0.00019178,2]
[388132252,1759018244460,-978.96,0.00019178,2]
[388132253,1759018244470,-978.96,0.00019178,2]
[388132254,1759018244479,-978.96,0.00019178,2]
[388132255,1759018244490,-978.96,0.00019178,2]
[388132256,1759018244502,-978.96,0.00019178,2]
[388132257,1759018244511,-978.96,0.00019178,2]
[388132258,1759018244520,-978.96,0.00019178,2]
[388132259,1759018244530,-978.96,0.00019178,2]
[388132260,1759018244539,-978.96,0.00019178,2]
[388132261,1759018244548,-979.06533807,0.00019178,2]
[388132262,1759018244557,-1614.3,0.00019178,2]
[388132263,1759018244566,-1614.3,0.00019178,2]
[388132264,1759018244575,-1614.3,0.00019178,2]
[388132265,1759018244584,-1614.3,0.00019178,2]
[388132266,1759018244594,-1614.3,0.00019178,2]
[388132267,1759018244603,-1614.3,0.00019178,2]
[388132268,1759018244612,-1614.3,0.00019178,2]
[388132269,1759018244623,-1614.3,0.00019178,2]
[388132270,1759018244632,-1614.3,0.00019178,2]
[388132271,1759018244641,-1614.3,0.00019178,2]
[388132272,1759018244651,-1614.3,0.00019178,2]
[388132273,1759018244660,-1614.3,0.00019178,2]
[388132274,1759018244670,-1614.3,0.00019178,2]
[388132275,1759018244680,-1614.3,0.00019178,2]
[388132276,1759018244690,-1614.3,0.00019178,2]
[388132277,1759018244700,-1614.3,0.00019178,2]
[388132278,1759018244709,-1614.3,0.00019178,2]
[388132279,1759018244718,-1614.3,0.00019178,2]
[388132280,1759018244727,-1614.3,0.00019178,2]
[388132281,1759018244737,-1614.3,0.00019178,2]
[388132282,1759018244746,-1614.3,0.00019178,2]
[388132283,1759018244756,-1614.3,0.00019178,2]
[388132284,1759018244765,-1614.3,0.00019178,2]
[388132285,1759018244775,-1614.3861341,0.00019178,2]
[388132286,1759018244785,-827.66,0.00019178,2]
[388132287,1759018244797,-827.66,0.00019178,2]
[388132288,1759018244808,-827.66,0.00019178,2]
[388132289,1759018244817,-827.66,0.00019178,2]
[388132290,1759018244826,-827.66,0.00019178,2]
[388132291,1759018244835,-827.66,0.00019178,2]
[388132292,1759018244845,-827.66,0.00019178,2]
[388132293,1759018244854,-827.66,0.00019178,2]
[388132294,1759018244863,-827.66,0.00019178,2]
[388132295,1759018244872,-827.66,0.00019178,2]
[388132296,1759018244882,-827.66,0.00019178,2]
[388132297,1759018244891,-827.66,0.00019178,2]
[388132298,1759018244901,-827.66,0.00019178,2]
[388132299,1759018244911,-827.66,0.00019178,2]
[388132300,1759018244922,-827.66,0.00019178,2]
[388132301,1759018244933,-827.66,0.00019178,2]
[388132302,1759018244943,-827.66,0.00019178,2]
[388132303,1759018244952,-827.66,0.00019178,2]
[388132304,1759018244961,-827.66,0.00019178,2]
[388132305,1759018244971,-827.66,0.00019178,2]
[388132306,1759018244980,-827.66,0.00019178,2]
[388132307,1759018244989,-827.66,0.00019178,2]
[388132308,1759018244998,-827.66,0.00019178,2]
[388132309,1759018245008,-827.72319234,0.00019178,2]
[388132310,1759018245017,-2487.21,0.00019178,2]
[388132311,1759018245027,-2487.21,0.00019178,2]
[388132312,1759018245035,-2487.21,0.00019178,2]
[388132313,1759018245044,-2487.21,0.00019178,2]
[388132314,1759018245053,-2487.21,0.00019178,2]
[388132315,1759018245063,-2487.21,0.00019178,2]
[388132316,1759018245072,-2487.21,0.00019178,2]
[388132317,1759018245081,-2487.21,0.00019178,2]
[388132318,1759018245093,-2487.21,0.00019178,2]
[388132319,1759018245102,-2487.21,0.00019178,2]
[388132320,1759018245112,-2487.21,0.00019178,2]
[388132321,1759018245122,-2487.21,0.00019178,2]
[388132322,1759018245134,-2487.21,0.00019178,2]
[388132323,1759018245144,-2487.21,0.00019178,2]
[388132324,1759018245153,-2487.21,0.00019178,2]
[388132325,1759018245163,-2487.21,0.00019178,2]
[388132326,1759018245172,-2487.21,0.00019178,2]
[388132327,1759018245182,-2487.21,0.00019178,2]
[388132328,1759018245191,-2487.21,0.00019178,2]
[388132329,1759018245200,-2487.21,0.00019178,2]
[388132330,1759018245209,-2487.21,0.00019178,2]
[388132331,1759018245220,-2487.21,0.00019178,2]
[388132332,1759018245230,-2487.21,0.00019178,2]
[388132333,1759018245240,-2487.34,0.00019178,2]
[388132334,1759018245249,-400.0,0.00019178,2]
[388132335,1759018245259,-400.0,0.00019178,2]
[388132336,1759018245268,-400.0,0.00019178,2]
[388132337,1759018245278,-400.0,0.00019178,2]
[388132338,1759018245287,-400.0,0.00019178,2]
[388132339,1759018245297,-400.0,0.00019178,2]
[388132340,1759018245306,-400.0,0.00019178,2]
[388132341,1759018245315,-400.0,0.00019178,2]
[388132342,1759018245325,-400.0,0.00019178,2]
[388132343,1759018245334,-394.77801628,0.00019178,2]
[388132344,1759018245349,-400.0,0.00019178,2]
[388132345,1759018245358,-325.15,0.00019178,2]
[388132346,1759018245368,-400.0,0.00019178,2]
[388132347,1759018245378,-400.0,0.00019178,2]
[388132348,1759018245390,-400.0,0.00019178,2]
[388132349,1759018245399,-400.0,0.00019178,2]
[388132350,1759018245408,-1053.45,0.00019178,2]
[388132351,1759018245418,-400.0,0.00019178,2]
[388132352,1759018245427,-1053.45,0.00019178,2]
[388132353,1759018245438,-400.0,0.00019178,2]
[388132354,1759018245448,-1053.45,0.00019178,2]
[388132355,1759018245458,-400.0,0.00019178,2]
[388132356,1759018245468,-1053.45,0.00019178,2]
[388132357,1759018245478,-400.0,0.00019178,2]
[388132358,1759018245488,-1053.45,0.00019178,2]
[388132359,1759018245498,-312.96670222,0.00019178,2]
[388132360,1759018245507,-1053.45,0.00019178,2]
[388132361,1759018245517,-1053.45,0.00019178,2]
[388132362,1759018245527,-1053.45,0.00019178,2]
[388132363,1759018245536,-1053.45,0.00019178,2]
[388132364,1759018245546,-1053.45,0.00019178,2]
[388132365,1759018245556,-1053.45,0.00019178,2]
[388132366,1759018245566,-1053.45,0.00019178,2]
[388132367,1759018245575,-1053.45,0.00019178,2]
[388132368,1759018245585,-1053.45,0.00019178,2]
[388132369,1759018245595,-1053.45,0.00019178,2]
[388132371,1759018245604,-1053.45,0.00019178,2]
[388132373,1759018245614,-1053.45,0.00019178,2]
[388132375,1759018245624,-1053.45,0.00019178,2]
[388132376,1759018245633,-1053.45,0.00019178,2]
[388132378,1759018245644,-1053.45,0.00019178,2]
[388132380,1759018245654,-1053.45,0.00019178,2]
[388132381,1759018245664,-1053.45,0.00019178,2]
[388132382,1759018245674,-1053.45,0.00019178,2]
[388132383,1759018245684,-1053.47302338,0.00019178,2]
[388132384,1759018245694,-212.15133657,0.00019178,2]
[388132385,1759018245703,-212.1,0.00019178,2]
[388132386,1759018245713,-398.0,0.00019178,2]
[388132387,1759018245722,-400.0,0.00019178,2]
[388132388,1759018245731,-400.0,0.00019178,2]
[388132389,1759018245746,-400.0,0.00019178,2]
[388132390,1759018245755,-400.0,0.00019178,2]
[388132391,1759018245765,-400.0,0.00019178,2]
[388132392,1759018245774,-400.0,0.00019178,2]
[388132393,1759018245784,-212.15133657,0.00019178,2]
[388132394,1759018245793,-2294.15,0.00019178,2]
[388132395,1759018245803,-2294.15,0.00019178,2]
[388132396,1759018245813,-2050.2960001,0.00019178,2]
[388132397,1759018245822,-2298.3,0.00019178,2]
[388132398,1759018245831,-2294.15,0.00019178,2]
[388132399,1759018245841,-2298.3,0.00019178,2]
[388132400,1759018245855,-2294.15,0.00019178,2]
[388132401,1759018245870,-1449.28084131,0.00019178,2]
[388132404,1759018247542,-849.01915869,0.00019178,2]
[388132405,1759018247555,-2294.15,0.00019178,2]
[388132406,1759018247565,-2298.3,0.00019178,2]
[388132407,1759018247575,-2294.15,0.00019178,2]
[388132408,1759018247585,-2298.3,0.00019178,2]
[388132409,1759018247595,-2294.15,0.00019178,2]
[388132410,1759018247604,-2298.3,0.00019178,2]
[388132411,1759018247614,-2294.15,0.00019178,2]
[388132412,1759018247624,-2298.3,0.00019178,2]
[388132413,1759018247633,-2294.15,0.00019178,2]
[388132414,1759018247642,-2298.3,0.00019178,2]
[388132415,1759018247652,-2294.15,0.00019178,2]
[388132416,1759018247661,-984.10622896,0.00019178,2]
[388132417,1759018491516,161.47,9.158e-05,2]
[388132418,1759018491605,161.47,0.00010684,2]
[388132419,1759018491666,161.47,0.0001221,2]
[388132427,1759018681862,1594.11459513,0.0003013,120]
[388132467,1759019063055,-161.47,0.00013736,2]
[388132468,1759019063240,-161.47,0.00014423,2]
[388132469,1759019063252,-77.06,0.00014423,2]
[388132470,1759019070262,-11.47,0.00014423,2]
[388132471,1759019070291,-127.06,0.0001511,2]
[388132472,1759019070314,-11.47,0.0001511,2]
[388132473,1759019070377,-111.47,0.0001511,2]
[388132474,1759019070386,-138.53,0.00015263,2]
[388132475,1759019085954,-22.94,0.00015263,2]
[388132476,1759019086258,-22.94,0.00016789,2]
[388132477,1759019086277,-105.12,0.00016789,2]
[388132478,1759019092615,-33.41,0.00016789,2]
[388132479,1759019099967,-176.91,0.000176,2]
[388132480,1759019107270,-46.68,0.000176,2]
[388132481,1759019114388,-145.80943332,0.000176,2]
[388132482,1759019122694,-4.19056668,0.000176,2]
[388132483,1759019122726,-156.34,0.000176,2]
[388132485,1759019264591,-52.14644604,0.00018,2]
[388132486,1759019272059,-97.85355396,0.00018,2]
[388132487,1759019272161,-42.26560514,0.00018,2]
[388132491,1759019279161,-126.26560514,0.00018,2]
[388132492,1759019279188,-147.46878972,0.00018,2]
[388132516,1759019389123,-229.43,0.00018144,2]
[388132517,1759019389182,-1114.98310245,0.00018192,2]
[388132518,1759019396135,-723.846684,0.00018192,2]
[388132519,1759019403267,-332.66021355,0.00018192,2]
[388132527,1759019432144,-161.47,0.00018315,2]
[388132528,1759019432154,-373.26,0.00018335,2]
[388132529,1759019432164,-167.53,0.00018809,2]
[388132530,1759019432173,-168.0,0.00018952,2]
[388132531,1759019432184,-1853.57234,0.0001899,2]
[388132532,1759019432193,-156.503,0.00019046,2]
[388132533,1759019432202,-1263.0,0.00019046,2]
[388132534,1759019432212,-201.93286099,0.00019066,2]
[388132535,1759019432222,-1200.0,0.00019076,2]
[388132536,1759019432232,-1000.0,0.00019078,2]
[388132537,1759019432241,-231.7593,0.00019078,2]
[388132539,1759019432251,-554.05031674,0.00019078,2]
[388132541,1759019432261,-257.5765923,0.00019078,2]
[388132543,1759019432270,-260.90012489,0.00019078,2]
[388132545,1759019432279,-197.60099186,0.00019078,2]
[388132547,1759019432288,-345.1898499,0.00019079,2]
[388132549,1759019432298,-5800.0,0.00019083,2]
[388132551,1759019432307,-5800.0,0.00019092,2]
[388132553,1759019432316,-309.72,0.000191,2]
[388132555,1759019432326,-175.32,0.000191,2]
[388132557,1759019432334,-167.62,0.000191,2]
[388132559,1759019432344,-1193.88,0.000191,2]
[388132561,1759019432353,-150.0,0.000191,2]
[388132563,1759019432363,-150.0,0.000191,2]
[388132564,1759019432372,-806.06,0.000191,2]
[388132565,1759019432382,-473.08,0.000191,2]
[388132566,1759019432391,-830.95,0.000191,2]
[388132568,1759019432400,-167.62,0.000191,2]
[388132569,1759019432409,-5800.0,0.000191,2]
[388132570,1759019432419,-150.0,0.000191,2]
[388132571,1759019432428,-1194.73,0.000191,2]
[388132572,1759019432438,-167.62,0.000191,2]
[388132573,1759019432448,-150.0,0.000191,2]
[388132574,1759019432457,-350.41,0.000191,2]
[388132575,1759019432467,-544.25,0.000191,2]
[388132576,1759019432477,-166.79,0.000191,2]
[388132577,1759019432489,-150.0,0.000191,2]
[388132578,1759019432498,-150.0,0.000191,2]
[388132579,1759019432508,-162.23347814,0.00019156,2]
[388132580,1759019432545,-5.76652186,0.00019156,2]
[388132581,1759019432555,-494.23347814,0.00019166,2]
[388132582,1759019432599,-5.76652186,0.00019166,2]
[388132583,1759019432609,-500.0,0.00019166,2]
[388132584,1759019432619,-500.0,0.00019166,2]
[388132585,1759019432628,-500.0,0.00019166,2]
[388132586,1759019432638,-500.0,0.00019166,2]
[388132587,1759019432647,-500.0,0.00019166,2]
[388132588,1759019432656,-500.0,0.00019166,2]
[388132589,1759019432666,-250.54596241,0.00019166,2]
[388132590,1759019438063,-1179.0,0.00019046,2]
[388132591,1759019438073,-52773.42818608,0.00019078,2]
[388132592,1759019438085,-249.45403759,0.00019166,2]
[388132593,1759019438095,-281.40415686,0.00019166,2]
[388132594,1759019438105,-500.0,0.00019166,2]
[388132595,1759019438115,-500.0,0.00019166,2]
[388132596,1759019438125,-500.0,0.00019166,2]
[388132597,1759019438134,-500.0,0.00019166,2]
[388132598,1759019438144,-500.0,0.00019166,2]
[388132599,1759019438153,-500.0,0.00019166,2]
[388132600,1759019438163,-500.0,0.00019166,2]
[388132601,1759019438174,-500.0,0.00019166,2]
[388132602,1759019438184,-281.24,0.00019166,2]
[388132603,1759019438194,-322.6107,0.00019166,2]
[388132604,1759019438204,-220.09584163,0.00019168,2]
[388132605,1759019438214,-500.0,0.00019173,2]
[388132606,1759019438224,-500.0,0.00019173,2]
[388132607,1759019438236,-500.0,0.00019173,2]
[388132608,1759019438246,-1000.0,0.00019177,2]
[388132609,1759019438255,-1000.0,0.00019177,2]
[388132610,1759019438266,-518.0,0.00019178,2]
[388132611,1759019438276,-527556.75069627,0.00019178,2]
[388132612,1759019438285,-198.4141622,0.00019178,2]
[388132613,1759019438295,-198.4141622,0.00019178,2]
[388132615,1759019438304,-198.4141622,0.00019178,2]
[388132617,1759019438314,-198.4141622,0.00019178,2]
[388132619,1759019438323,-198.4141622,0.00019178,2]
[388132621,1759019438332,-198.4141622,0.00019178,2]
[388132623,1759019438342,-198.4141622,0.00019178,2]
[388132625,1759019438352,-198.4141622,0.00019178,2]
[388132627,1759019438363,-198.4141622,0.00019178,2]
[388132628,1759019438372,-198.4141622,0.00019178,2]
[388132629,1759019438382,-198.4141622,0.00019178,2]
[388132630,1759019438391,-198.4141622,0.00019178,2]
[388132631,1759019438402,-198.4141622,0.00019178,2]
[388132632,1759019438411,-198.4141622,0.00019178,2]
[388132633,1759019438421,-198.4141622,0.00019178,2]
[388132634,1759019438431,-198.41416219,0.00019178,2]
[388132636,1759019438441,-198.41416219,0.00019178,2]
[388132638,1759019438451,-198.41416219,0.00019178,2]
[388132640,1759019438460,-198.41416219,0.00019178,2]
[388132642,1759019438470,-198.41416219,0.00019178,2]
[388132644,1759019438480,-400.0,0.00019178,2]
[388132646,1759019438492,-400.0,0.00019178,2]
[388132648,1759019438502,-272.73225911,0.00019178,2]
[388132650,1759019438512,-400.0,0.00019178,2]
[388132651,1759019438523,-400.0,0.00019178,2]
[388132652,1759019438534,-400.0,0.00019178,2]
[388132653,1759019438545,-400.0,0.00019178,2]
[388132654,1759019438555,-400.0,0.00019178,2]
[388132655,1759019438565,-400.0,0.00019178,2]
[388132656,1759019438575,-400.0,0.00019178,2]
[388132657,1759019438585,-400.0,0.00019178,2]
[388132658,1759019438595,-400.0,0.00019178,2]
[388132659,1759019438605,-260.43533981,0.00019178,2]
[388132660,1759019438616,-400.0,0.00019178,2]
[388132661,1759019438626,-400.0,0.00019178,2]
[388132662,1759019438635,-400.0,0.00019178,2]
[388132663,1759019438645,-400.0,0.00019178,2]
[388132664,1759019438655,-400.0,0.00019178,2]
[388132665,1759019438665,-773.24,0.00019178,2]